fUSD/lending_fUSD_20250302
["ID","MTS","AMOUNT","RATE_DAILY","PERIOD"]
[355161533,1740939037291,-500.0,0.00025069,2]
[355161534,1740939037303,-500.0,0.00025069,2]
[355161535,1740939037632,-600.53,0.00025069,2]
[355161536,1740939037643,-650.74,0.00025069,2]
[355161537,1740939037653,-500.0,0.00025069,2]
[355161538,1740939037663,-500.0,0.00025069,2]
[355161539,1740939037673,-500.0,0.00025069,2]
[355161540,1740939037683,-500.0,0.00025069,2]
[355161541,1740939037693,-500.0,0.00025069,2]
[355161542,1740939037703,-500.0,0.00025069,2]
[355161543,1740939037713,-500.0,0.00025069,2]
[355161544,1740939037723,-508.60736614,0.00025069,2]
[355161545,1740939037733,-437.40349075,0.00025069,2]
[355161546,1740939037742,-500.0,0.00025069,2]
[355161547,1740939037752,-500.0,0.00025069,2]
[355161548,1740939037761,-500.0,0.00025069,2]
[355161549,1740939037772,-608.12,0.00025069,2]
[355161550,1740939037782,-500.0,0.00025069,2]
[355161551,1740939037792,-500.0,0.00025069,2]
[355161552,1740939037802,-500.0,0.00025069,2]
[355161553,1740939037812,-713.73,0.00025069,2]
[355161554,1740939037821,-500.0,0.00025069,2]
[355161555,1740939037831,-500.0,0.00025069,2]
[355161556,1740939037840,-500.0,0.00025069,2]
[355161557,1740939037850,-500.0,0.00025069,2]
[355161558,1740939037860,-558.86539839,0.00025069,2]
[355161559,1740939037875,-500.0,0.00025069,2]
[355161560,1740939037884,-500.0,0.00025069,2]
[355161561,1740939037894,-500.0,0.00025069,2]
[355161562,1740939037904,-500.0,0.00025069,2]
[355161563,1740939037914,-500.0,0.00025069,2]
[355161564,1740939037923,-500.0,0.00025069,2]
[355161565,1740939037933,-500.0,0.00025069,2]
[355161566,1740939037943,-592.31,0.00025069,2]
[355161567,1740939037953,-500.0,0.00025069,2]
[355161568,1740939037962,-500.0,0.00025069,2]
[355161569,1740939037972,-524.39,0.00025069,2]
[355161570,1740939037983,-500.0,0.00025069,2]
[355161571,1740939037993,-768.6,0.00025069,2]
[355161572,1740939038002,-500.0,0.00025069,2]
[355161573,1740939038012,-500.0,0.00025069,2]
[355161574,1740939038023,-500.0,0.00025069,2]
[355161575,1740939038033,-500.0,0.00025069,2]
[355161576,1740939038042,-500.0,0.00025069,2]
[355161577,1740939038052,-500.0,0.00025069,2]
[355161578,1740939038062,-500.0,0.00025069,2]
[355161579,1740939038071,-1343.9,0.00025069,2]
[355161580,1740939038081,-500.0,0.00025069,2]
[355161581,1740939038091,-500.0,0.00025069,2]
[355161582,1740939038100,-500.0,0.00025069,2]
[355161583,1740939038111,-652.56,0.00025069,2]
[355161584,1740939038124,-500.0,0.00025069,2]
[355161586,1740939038134,-500.0,0.00025069,2]
[355161588,1740939038144,-4140.74,0.00025069,2]
[355161590,1740939038155,-500.0,0.00025069,2]
[355161592,1740939038165,-500.0,0.00025069,2]
[355161594,1740939038175,-596.26,0.00025069,2]
[355161596,1740939038184,-500.0,0.00025069,2]
[355161597,1740939038194,-500.0,0.00025069,2]
[355161598,1740939038203,-500.0,0.00025069,2]
[355161599,1740939038214,-500.0,0.00025069,2]
[355161600,1740939038225,-649.21918065,0.00025069,2]
[355161602,1740939038234,-500.0,0.00025069,2]
[355161603,1740939038245,-500.0,0.00025069,2]
[355161604,1740939038254,-500.0,0.00025069,2]
[355161605,1740939038264,-500.0,0.00025069,2]
[355161606,1740939038274,-1270.43,0.00025069,2]
[355161607,1740939038283,-500.0,0.00025069,2]
[355161608,1740939038294,-500.0,0.00025069,2]
[355161609,1740939038304,-500.0,0.00025069,2]
[355161610,1740939038314,-500.0,0.00025069,2]
[355161611,1740939038324,-500.0,0.00025069,2]
[355161613,1740939038334,-500.0,0.00025069,2]
[355161614,1740939038346,-500.0,0.00025069,2]
[355161615,1740939038356,-791.57,0.00025069,2]
[355161616,1740939038369,-500.0,0.00025069,2]
[355161617,1740939038379,-500.0,0.00025069,2]
[355161618,1740939038389,-500.0,0.00025069,2]
[355161619,1740939038399,-500.0,0.00025069,2]
[355161620,1740939038410,-500.0,0.0002507,2]
[355161621,1740939038422,-500.0,0.0002507,2]
[355161622,1740939038432,-500.0,0.0002507,2]
[355161623,1740939038442,-500.0,0.0002507,2]
[355161624,1740939038451,-500.0,0.0002507,2]
[355161625,1740939038461,-500.0,0.0002507,2]
[355161626,1740939038470,-500.0,0.0002507,2]
[355161627,1740939038480,-500.0,0.0002507,2]
[355161628,1740939038489,-500.0,0.0002507,2]
[355161629,1740939038500,-500.0,0.0002507,2]
[355161630,1740939038509,-500.0,0.0002507,2]
[355161631,1740939038519,-500.0,0.0002507,2]
[355161632,1740939038529,-500.0,0.0002507,2]
[355161633,1740939038538,-500.0,0.0002507,2]
[355161634,1740939038549,-553.98,0.0002507,2]
[355161635,1740939038558,-500.0,0.0002507,2]
[355161636,1740939038568,-500.0,0.0002507,2]
[355161637,1740939038577,-500.0,0.0002507,2]
[355161638,1740939038588,-500.0,0.0002507,2]
[355161639,1740939038597,-500.0,0.0002507,2]
[355161640,1740939038607,-500.0,0.0002507,2]
[355161641,1740939038618,-500.0,0.0002507,2]
[355161642,1740939038627,-500.0,0.0002507,2]
[355161643,1740939038637,-500.0,0.0002507,2]
[355161644,1740939038647,-500.0,0.0002507,2]
[355161645,1740939038656,-500.0,0.0002507,2]
[355161646,1740939038666,-500.0,0.0002507,2]
[355161647,1740939038676,-500.0,0.0002507,2]
[355161648,1740939038686,-500.0,0.0002507,2]
[355161649,1740939038696,-500.0,0.0002507,2]
[355161650,1740939038706,-500.0,0.0002507,2]
[355161651,1740939038715,-500.0,0.0002507,2]
[355161652,1740939038725,-500.0,0.0002507,2]
[355161653,1740939038735,-500.0,0.0002507,2]
[355161654,1740939038745,-500.0,0.0002507,2]
[355161655,1740939038755,-525.37,0.0002507,2]
[355161656,1740939038765,-500.0,0.0002507,2]
[355161657,1740939038775,-500.0,0.0002507,2]
[355161658,1740939038785,-500.0,0.0002507,2]
[355161659,1740939038794,-325.97664254,0.0002507,2]
[355161660,1740939038805,-500.0,0.0002507,2]
[355161661,1740939038816,-500.0,0.0002507,2]
[355161662,1740939038826,-500.0,0.0002507,2]
[355161663,1740939038837,-500.0,0.0002507,2]
[355161664,1740939038847,-500.0,0.0002507,2]
[355161665,1740939038858,-500.0,0.0002507,2]
[355161666,1740939038870,-992.16,0.0002507,2]
[355161667,1740939038880,-856.65,0.0002507,2]
[355161668,1740939038890,-6003.83,0.0002507,2]
[355161669,1740939038901,-500.0,0.0002507,2]
[355161670,1740939038912,-500.0,0.0002507,2]
[355161671,1740939038922,-1557.72,0.0002507,2]
[355161672,1740939038932,-500.0,0.0002507,2]
[355161673,1740939038941,-588.9,0.0002507,2]
[355161674,1740939038952,-500.0,0.0002507,2]
[355161675,1740939038962,-315.07,0.0002507,2]
[355161676,1740939038973,-927.56,0.0002507,2]
[355161677,1740939038983,-500.0,0.0002507,2]
[355161678,1740939038992,-500.0,0.0002507,2]
[355161679,1740939039003,-1337.58,0.0002507,2]
[355161680,1740939039013,-500.0,0.0002507,2]
[355161681,1740939039026,-1000.0,0.0002507,2]
[355161682,1740939039036,-163.4,0.0002507,2]
[355161683,1740939039046,-873.07,0.0002507,2]
[355161684,1740939039056,-500.0,0.0002507,2]
[355161685,1740939039066,-956.53,0.0002507,2]
[355161686,1740939039076,-503.20352872,0.0002507,2]
[355161687,1740939039087,-500.0,0.0002507,2]
[355161688,1740939039098,-500.0,0.0002507,2]
[355161689,1740939039108,-1282.66,0.0002507,2]
[355161690,1740939039121,-1394.32,0.0002507,2]
[355161691,1740939039131,-763.69,0.0002507,2]
[355161692,1740939039142,-500.0,0.00025071,2]
[355161693,1740939039152,-500.0,0.00025071,2]
[355161694,1740939039162,-500.0,0.00025071,2]
[355161695,1740939039172,-286.72,0.00025071,2]
[355161696,1740939039182,-508.06,0.00025071,2]
[355161697,1740939039191,-500.0,0.00025071,2]
[355161698,1740939039202,-500.0,0.00025071,2]
[355161699,1740939039212,-500.0,0.00025071,2]
[355161700,1740939039222,-500.0,0.00025071,2]
[355161701,1740939039233,-500.0,0.00025071,2]
[355161702,1740939039242,-500.0,0.00025071,2]
[355161703,1740939039252,-500.0,0.00025071,2]
[355161704,1740939039262,-500.0,0.00025071,2]
[355161705,1740939039273,-587.02286043,0.00025071,2]
[355161706,1740939039282,-500.0,0.00025071,2]
[355161707,1740939039292,-500.0,0.00025071,2]
[355161708,1740939039302,-500.0,0.00025071,2]
[355161709,1740939039312,-395.4600127,0.00025071,2]
[355161710,1740939039324,-500.0,0.00025073,2]
[355161711,1740939039335,-151.58010006,0.00025073,2]
[355161712,1740939039344,-167.57209485,0.00025073,2]
[355161713,1740939039355,-500.0,0.00025073,2]
[355161714,1740939039371,-160.00134723,0.00025073,2]
[355161715,1740939039381,-151.00579827,0.00025073,2]
[355161716,1740939039392,-345.91905719,0.00025141,4]
[355161717,1740939039402,-877.9805,0.00025145,2]
[355161718,1740939039414,-361.30075112,0.00025146,2]
[355161719,1740939039425,-762.55,0.00025171,7]
[355161720,1740939039435,-762.55,0.00025171,7]
[355161721,1740939039445,-151.0,0.00025171,7]
[355161722,1740939039454,-3089.69456907,0.00025183,2]
[355161723,1740939039464,-410.37466481,0.00025191,2]
[355161724,1740939039475,-3416.10114303,0.00025245,2]
[355161725,1740939039491,-2436.60795697,0.00025245,2]
[355161726,1740939039501,-1647.4406,0.00025245,2]
[355161727,1740939039512,-1466.5588,0.00025245,2]
[355161728,1740939039521,-1000.0,0.00025246,2]
[355161729,1740939039531,-174.35152275,0.00025341,2]
[355161730,1740939039542,-577.71795038,0.00025341,2]
[355161731,1740939039553,-577.71795038,0.00025341,2]
[355161732,1740939039563,-577.71795038,0.00025341,2]
[355161733,1740939039573,-577.71795038,0.00025341,2]
[355161734,1740939039584,-577.71795038,0.00025341,2]
[355161735,1740939039593,-577.71795038,0.00025341,2]
[355161736,1740939039604,-500.0,0.00025342,2]
[355161737,1740939039618,-1081.23,0.00025342,2]
[355161738,1740939039630,-1217.42,0.00025342,2]
[355161739,1740939039642,-1732.71,0.00025342,2]
[355161740,1740939039657,-248.006781,0.00025342,2]
[355161741,1740939039670,-550.93,0.00025342,2]
[355161742,1740939039682,-679.32,0.00025342,2]
[355161743,1740939039695,-822.5,0.00025342,2]
[355161744,1740939039708,-196.854988,0.00025342,2]
[355161745,1740939039721,-625.27,0.00025342,2]
[355161746,1740939039735,-720.38,0.00025342,2]
[355161747,1740939039747,-1866.42,0.00025342,2]
[355161748,1740939039759,-1050.5,0.00025342,2]
[355161749,1740939039771,-930.37,0.00025342,2]
[355161750,1740939039783,-1219.5,0.00025342,2]
[355161751,1740939039796,-629.6,0.00025342,2]
[355161752,1740939039808,-1652.74,0.00025342,2]
[355161753,1740939039823,-518.97,0.00025342,2]
[355161754,1740939039837,-701.89,0.00025342,2]
[355161755,1740939039849,-500.0,0.00025342,2]
[355161756,1740939039861,-500.0,0.00025342,2]
[355161757,1740939039882,-979.63,0.00025342,2]
[355161758,1740939039894,-898.75,0.00025342,2]
[355161759,1740939039906,-500.0,0.00025342,2]
[355161760,1740939039917,-500.0,0.00025342,2]
[355161761,1740939039930,-500.0,0.00025342,2]
[355161762,1740939039941,-632.66,0.00025342,2]
[355161763,1740939039955,-500.0,0.00025342,2]
[355161764,1740939039967,-867.95,0.00025342,2]
[355161765,1740939039981,-500.0,0.00025342,2]
[355161766,1740939039993,-533.61,0.00025342,2]
[355161767,1740939040005,-808.44,0.00025342,2]
[355161768,1740939040016,-500.0,0.00025342,2]
[355161769,1740939040028,-500.0,0.00025342,2]
[355161770,1740939040039,-500.0,0.00025342,2]
[355161771,1740939040050,-500.0,0.00025342,2]
[355161772,1740939040061,-510.05,0.00025342,2]
[355161773,1740939040071,-500.0,0.00025342,2]
[355161774,1740939040081,-515.82,0.00025342,2]
[355161775,1740939040091,-515.47,0.00025342,2]
[355161776,1740939040101,-500.0,0.00025342,2]
[355161777,1740939040111,-544.53,0.00025342,2]
[355161778,1740939040126,-500.0,0.00025342,2]
[355161779,1740939040135,-500.0,0.00025342,2]
[355161780,1740939040227,-500.0,0.00025342,2]
[355161781,1740939040238,-834.57,0.00025342,2]
[355161782,1740939040248,-705.22,0.00025342,2]
[355161783,1740939040258,-500.0,0.00025342,2]
[355161785,1740939040268,-1244.05,0.00025342,2]
[355161786,1740939040278,-500.0,0.00025342,2]
[355161787,1740939040287,-818.12,0.00025342,2]
[355161788,1740939040297,-861.37,0.00025342,2]
[355161789,1740939040307,-500.0,0.00025342,2]
[355161790,1740939040317,-574.72,0.00025342,2]
[355161791,1740939040327,-500.0,0.00025342,2]
[355161792,1740939040337,-539.64,0.00025342,2]
[355161793,1740939040350,-407.82,0.00025342,2]
[355161794,1740939040359,-500.0,0.00025343,2]
[355161795,1740939040374,-500.0,0.00025343,2]
[355161796,1740939040383,-500.0,0.00025343,2]
[355161797,1740939040394,-207.49,0.00025343,2]
[355161798,1740939040404,-500.0,0.00025343,2]
[355161799,1740939040414,-500.0,0.00025343,2]
[355161800,1740939040424,-500.0,0.00025343,2]
[355161802,1740939040435,-500.0,0.00025343,2]
[355161803,1740939040445,-500.0,0.00025343,2]
[355161804,1740939040456,-500.0,0.00025343,2]
[355161805,1740939040466,-500.0,0.00025343,2]
[355161806,1740939040475,-500.0,0.00025343,2]
[355161808,1740939040485,-500.0,0.00025343,2]
[355161810,1740939040494,-500.0,0.00025343,2]
[355161812,1740939040504,-500.0,0.00025343,2]
[355161813,1740939040514,-500.0,0.00025343,2]
[355161814,1740939040524,-189.54648158,0.00025343,2]
[355161815,1740939040548,-577.71795038,0.00025341,2]
[355161816,1740939040558,-577.71795038,0.00025341,2]
[355161817,1740939040569,-49.32319773,0.00025343,2]
[355161818,1740939040583,-379.51032069,0.00025343,2]
[355161819,1740939040593,-500.0,0.00025343,2]
[355161820,1740939040604,-96.98681732,0.00025343,2]
[355161821,1740939040619,-403.01318268,0.00025343,2]
[355161822,1740939040630,-500.0,0.00025343,2]
[355161823,1740939040640,-500.0,0.00025343,2]
[355161824,1740939040650,-500.0,0.00025343,2]
[355161825,1740939040659,-500.0,0.00025343,2]
[355161826,1740939040669,-500.0,0.00025343,2]
[355161827,1740939040679,-500.0,0.00025343,2]
[355161828,1740939040689,-415.89284896,0.00025343,2]
[355161829,1740939040699,-500.0,0.00025343,2]
[355161830,1740939040708,-500.0,0.00025343,2]
[355161831,1740939040718,-500.0,0.00025343,2]
[355161832,1740939040728,-500.0,0.00025343,2]
[355161833,1740939040737,-500.0,0.00025343,2]
[355161834,1740939040747,-349.4230271,0.00025343,2]
[355161835,1740939040757,-500.0,0.00025343,2]
[355161836,1740939040768,-500.0,0.00025343,2]
[355161837,1740939040777,-500.0,0.00025343,2]
[355161838,1740939040787,-369.37,0.00025343,2]
[355161839,1740939040796,-500.0,0.00025343,2]
[355161840,1740939040806,-365.70094126,0.00025343,2]
[355161841,1740939040819,-137.55905874,0.00025343,2]
[355161842,1740939040829,-500.0,0.00025343,2]
[355161843,1740939040838,-500.0,0.00025343,2]
[355161844,1740939040849,-500.0,0.00025343,2]
[355161845,1740939040858,-500.0,0.00025343,2]
[355161846,1740939040871,-500.0,0.00025343,2]
[355161847,1740939040881,-0.90420134,0.00025343,2]
[355161848,1740939040911,-499.09579866,0.00025343,2]
[355161849,1740939040921,-500.0,0.00025343,2]
[355161850,1740939040932,-500.0,0.00025343,2]
[355161851,1740939040941,-374.18444507,0.00025343,2]
[355161852,1740939040951,-500.0,0.00025343,2]
[355161853,1740939040961,-500.0,0.00025343,2]
[355161854,1740939040970,-500.0,0.00025343,2]
[355161856,1740939040980,-500.0,0.00025343,2]
[355161857,1740939040990,-500.0,0.00025343,2]
[355161858,1740939041000,-750.0,0.00025343,2]
[355161859,1740939041010,-500.0,0.00025343,2]
[355161860,1740939041020,-500.0,0.00025343,2]
[355161861,1740939041030,-196.58706968,0.00025343,2]
[355161862,1740939041041,-298.695,0.00025343,2]
[355161863,1740939041054,-4.71793032,0.00025343,2]
[355161864,1740939041063,-500.0,0.00025343,2]
[355161865,1740939041073,-500.0,0.00025343,2]
[355161866,1740939041083,-500.0,0.00025343,2]
[355161867,1740939041092,-504.95612259,0.00025343,2]
[355161868,1740939041102,-247.36563625,0.00025343,2]
[355161869,1740939041117,-252.63436375,0.00025343,2]
[355161870,1740939041127,-500.0,0.00025343,2]
[355161871,1740939041136,-500.0,0.00025343,2]
[355161872,1740939041146,-500.0,0.00025343,2]
[355161873,1740939041155,-500.0,0.00025343,2]
[355161874,1740939041166,-500.0,0.00025343,2]
[355161875,1740939041175,-500.0,0.00025343,2]
[355161876,1740939041185,-500.0,0.00025343,2]
[355161877,1740939041195,-520.22,0.00025343,2]
[355161878,1740939041204,-500.0,0.00025343,2]
[355161879,1740939041214,-603.34,0.00025343,2]
[355161880,1740939041223,-500.0,0.00025343,2]
[355161881,1740939041235,-341.1477487,0.00025343,2]
[355161882,1740939041245,-500.0,0.00025343,2]
[355161883,1740939041255,-500.0,0.00025343,2]
[355161884,1740939041264,-500.0,0.00025343,2]
[355161885,1740939041274,-500.0,0.00025343,2]
[355161886,1740939041283,-3256.71,0.00025343,2]
[355161887,1740939041293,-500.0,0.00025343,2]
[355161888,1740939041302,-500.0,0.00025343,2]
[355161889,1740939041313,-857.56,0.00025343,2]
[355161890,1740939041328,-500.0,0.00025343,2]
[355161891,1740939041337,-500.0,0.00025343,2]
[355161892,1740939041347,-1309.1,0.00025343,2]
[355161893,1740939041359,-500.0,0.00025343,2]
[355161894,1740939041376,-780.81,0.00025343,2]
[355161895,1740939041386,-500.0,0.00025343,2]
[355161896,1740939041396,-500.0,0.00025343,2]
[355161897,1740939041408,-500.0,0.00025343,2]
[355161898,1740939041418,-925.49,0.00025343,2]
[355161899,1740939041428,-500.0,0.00025343,2]
[355161900,1740939041438,-500.0,0.00025343,2]
[355161901,1740939041448,-500.0,0.00025343,2]
[355161902,1740939041457,-500.0,0.00025343,2]
[355161903,1740939041467,-500.0,0.00025343,2]
[355161904,1740939041476,-711.07,0.00025343,2]
[355161905,1740939041486,-500.0,0.00025343,2]
[355161906,1740939041495,-430.47522541,0.00025343,2]
[355161907,1740939041504,-500.0,0.00025343,2]
[355161908,1740939041514,-673.25,0.00025343,2]
[355161909,1740939041524,-500.0,0.00025343,2]
[355161910,1740939041533,-500.0,0.00025343,2]
[355161911,1740939041544,-500.0,0.00025343,2]
[355161912,1740939041553,-927.56,0.00025343,2]
[355161913,1740939041562,-500.0,0.00025343,2]
[355161914,1740939041571,-814.36,0.00025343,2]
[355161915,1740939041581,-500.0,0.00025343,2]
[355161916,1740939041590,-676.78,0.00025343,2]
[355161917,1740939041600,-500.0,0.00025343,2]
[355161918,1740939041609,-500.0,0.00025343,2]
[355161919,1740939041621,-626.54,0.00025343,2]
[355161920,1740939041630,-500.0,0.00025343,2]
[355161921,1740939041639,-500.0,0.00025343,2]
[355161922,1740939041649,-528.21,0.00025343,2]
[355161923,1740939041658,-500.0,0.00025343,2]
[355161924,1740939041667,-500.0,0.00025343,2]
[355161925,1740939041676,-600.53,0.00025343,2]
[355161926,1740939041686,-650.74,0.00025343,2]
[355161927,1740939041697,-500.0,0.00025343,2]
[355161928,1740939041706,-500.0,0.00025343,2]
[355161929,1740939041716,-500.0,0.00025343,2]
[355161930,1740939041725,-500.0,0.00025343,2]
[355161931,1740939041735,-500.0,0.00025343,2]
[355161932,1740939041746,-608.12,0.00025343,2]
[355161933,1740939041755,-500.0,0.00025343,2]
[355161934,1740939041765,-500.0,0.00025343,2]
[355161935,1740939041775,-500.0,0.00025343,2]
[355161936,1740939041785,-713.73,0.00025343,2]
[355161937,1740939041795,-500.0,0.00025343,2]
[355161938,1740939041804,-500.0,0.00025343,2]
[355161939,1740939041813,-500.0,0.00025343,2]
[355161940,1740939041823,-500.0,0.00025343,2]
[355161941,1740939041832,-500.0,0.00025343,2]
[355161942,1740939041842,-500.0,0.00025343,2]
[355161943,1740939041851,-592.31,0.00025343,2]
[355161944,1740939041862,-500.0,0.00025343,2]
[355161945,1740939041876,-768.6,0.00025343,2]
[355161946,1740939041886,-500.0,0.00025343,2]
[355161947,1740939041896,-500.0,0.00025343,2]
[355161948,1740939041906,-510.04510777,0.00025343,2]
[355161949,1740939041916,-1343.9,0.00025343,2]
[355161950,1740939041927,-500.0,0.00025343,2]
[355161951,1740939041938,-652.56,0.00025343,2]
[355161952,1740939041947,-560.05,0.00025343,2]
[355161953,1740939041957,-4140.74,0.00025343,2]
[355161954,1740939041967,-596.26,0.00025343,2]
[355161955,1740939041978,-500.0,0.00025343,2]
[355161956,1740939041988,-500.0,0.00025343,2]
[355161957,1740939041998,-500.0,0.00025343,2]
[355161958,1740939042009,-500.0,0.00025343,2]
[355161959,1740939042019,-500.0,0.00025343,2]
[355161960,1740939042030,-629.94757753,0.00025343,2]
[355161961,1740939042039,-1270.43,0.00025343,2]
[355161962,1740939042050,-500.0,0.00025343,2]
[355161963,1740939042060,-500.0,0.00025343,2]
[355161964,1740939042070,-500.0,0.00025343,2]
[355161965,1740939042082,-500.0,0.00025343,2]
[355161966,1740939042092,-791.57,0.00025343,2]
[355161967,1740939042101,-500.0,0.00025343,2]
[355161968,1740939042111,-500.0,0.00025343,2]
[355161969,1740939042125,-500.0,0.00025343,2]
[355161970,1740939042134,-508.46613867,0.00025343,2]
[355161971,1740939042144,-294.14,0.00025344,2]
[355161972,1740939042154,-500.0,0.00025344,2]
[355161973,1740939042164,-500.0,0.00025344,2]
[355161974,1740939042174,-500.0,0.00025344,2]
[355161975,1740939042184,-500.0,0.00025344,2]
[355161976,1740939042195,-500.0,0.00025344,2]
[355161977,1740939042205,-500.0,0.00025344,2]
[355161978,1740939042214,-500.0,0.00025344,2]
[355161979,1740939042224,-500.0,0.00025344,2]
[355161980,1740939042233,-500.0,0.00025344,2]
[355161981,1740939042243,-500.0,0.00025344,2]
[355161982,1740939042252,-500.0,0.00025344,2]
[355161983,1740939042263,-500.0,0.00025344,2]
[355161984,1740939042272,-500.0,0.00025344,2]
[355161985,1740939042282,-500.0,0.00025344,2]
[355161986,1740939042291,-500.0,0.00025344,2]
[355161987,1740939042301,-500.0,0.00025344,2]
[355161988,1740939042311,-500.0,0.00025344,2]
[355161989,1740939042322,-281.58854496,0.00025344,2]
[355161990,1740939042591,-218.41145504,0.00025344,2]
[355161991,1740939042601,-500.0,0.00025344,2]
[355161992,1740939042611,-500.0,0.00025344,2]
[355161993,1740939042624,-500.0,0.00025344,2]
[355161994,1740939042634,-500.0,0.00025344,2]
[355161995,1740939042643,-569.58,0.00025344,2]
[355161996,1740939042656,-585.44041414,0.00025344,2]
[355161997,1740939042665,-500.0,0.00025344,2]
[355161998,1740939042675,-500.0,0.00025344,2]
[355161999,1740939042685,-470.95713211,0.00025344,2]
[355162000,1740939042712,-577.71795038,0.00025341,2]
[355162001,1740939042722,-29.04286789,0.00025344,2]
[355162002,1740939042732,-293.07308305,0.00025344,2]
[355162003,1740939042742,-495.26163369,0.00025344,2]
[355162004,1740939042755,-4.73836631,0.00025344,2]
[355162005,1740939042765,-446.69925238,0.00025344,2]
[355162006,1740939042785,-434.06165843,0.00025341,2]
[355162007,1740939042797,-143.65629195,0.00025341,2]
[355162008,1740939042807,-53.30074762,0.00025344,2]
[355162009,1740939042817,-98.53485256,0.00025344,2]
[355162010,1740939042837,-401.46514744,0.00025344,2]
[355162011,1740939042846,-500.0,0.00025344,2]
[355162012,1740939042856,-525.37,0.00025344,2]
[355162013,1740939042868,-458.84510126,0.00025344,2]
[355162021,1740939043924,-4770.73040501,0.00020002,2]
[355162022,1740939043935,-142.97919042,0.00025067,2]
[355162023,1740939043948,-357.02080958,0.00025067,2]
[355162024,1740939043958,-402.20137317,0.00025067,2]
[355162026,1740939043968,-161.16572413,0.00025067,2]
[355162028,1740939043978,-500.0,0.00025067,2]
[355162030,1740939043987,-500.0,0.00025068,2]
[355162032,1740939043997,-500.0,0.00025069,2]
[355162034,1740939044007,-500.0,0.00025069,2]
[355162035,1740939044017,-577.71795038,0.00025341,2]
[355162036,1740939044026,-577.71795038,0.00025341,2]
[355162037,1740939044037,-577.71795038,0.00025341,2]
[355162038,1740939044046,-577.71795038,0.00025341,2]
[355162039,1740939044056,-577.71795038,0.00025341,2]
[355162040,1740939044066,-577.71795038,0.00025341,2]
[355162041,1740939044076,-577.71795038,0.00025341,2]
[355162042,1740939044085,-577.71795038,0.00025341,2]
[355162043,1740939044095,-500.0,0.00025342,2]
[355162044,1740939044105,-500.0,0.00025343,2]
[355162045,1740939044118,-41.15489874,0.00025344,2]
[355162046,1740939044128,-478.21062211,0.00025344,2]
[355162047,1740939044141,-21.78937789,0.00025344,2]
[355162048,1740939044151,-500.0,0.00025344,2]
[355162049,1740939044161,-500.0,0.00025344,2]
[355162050,1740939044171,-500.0,0.00025344,2]
[355162051,1740939044182,-500.0,0.00025344,2]
[355162052,1740939044192,-477.80345427,0.00025344,2]
[355162053,1740939044205,-22.19654573,0.00025344,2]
[355162054,1740939044215,-500.0,0.00025344,2]
[355162055,1740939044224,-500.0,0.00025344,2]
[355162056,1740939044234,-856.65,0.00025344,2]
[355162057,1740939044245,-500.0,0.00025344,2]
[355162058,1740939044254,-500.0,0.00025344,2]